Workbook

Sheet ORÇAMENTO
A1: <---- NUMERAR SERVIÇOS PARA CPU | C1: Ministério do Desenvolvimento Regional
C2: Companhia de Desenvolvimento dos Vales do São Francisco e do Parnaíba
C3: 1ª Superintendência Regional
B5: OBRA: | C5: PAVIMENTAÇÃO ASFÁLTICA EM CBUQ – ESTRADA DE ACESSO À COMUNIDADE DE PARAGUASSU (NOVA PORTEIRINHA-MG)
B6: DATA: | C6: SETEMBRO/2023 | G6: BDI Serviços: | I6: ='BDI SERV'!D31/100 -> 0.2409 | M6: .
B7: PRAZO DE EXECUÇÃO: 180 DIAS | G7: BDI Serviços: | I7: ='BDI FORN'!D31/100 -> 0.15
B8: ITEM | C8: DISCRIMINAÇÃO | D8: REFER. | E8: UNID. | F8: QUANT. | G8: P. UNITÁRIO | H8: P.UNIT.C/ BDI | I8: P. TOTAL | J8: =I38 -> 3123817.71
A9: A | B9: 1 | C9: SERVIÇOS PRELIMINARES | I9: =SUM(I10:I14) -> 167404.15 | J9: =I9/$I$38 -> 0.0535896027
A10: 1 | B10: 1.1 | C10: MOBILIZAÇÃO E DESMOBILIZAÇÃO | D10: CPU.1 | E10: GL | F10: 1 | G10: 7407.12 | H10: =VLOOKUP(A10,CPU!$A$1:$N$4661,10) -> 9191.5 | I10: =ROUND(F10*H10,2) -> 9191.5 | J10: 0.002942393204
A11: 2 | B11: 1.2 | C11: ADMINISTRAÇÃO LOCAL | D11: CPU.2 | E11: GL | F11: 1 | G11: 104541.48 | H11: =VLOOKUP(A11,CPU!$A$1:$N$4661,10) -> 129725.52 | I11: =ROUND(F11*H11,2) -> 129725.52 | J11: 0.04152787776
A12: 3 | B12: 1.3 | C12: CANTEIRO DE OBRAS | D12: CPU.3 | E12: GL | F12: 1 | G12: 14140.5 | H12: =VLOOKUP(A12,CPU!$A$1:$N$4661,10) -> 17546.95 | I12: =ROUND(F12*H12,2) -> 17546.95 | J12: 0.005617149152
A13: 4 | B13: 1.4 | C13: PLACA DE OBRA EM CHAPA DE AÇO GALVANIZADO | D13: 103689 | E13: M2 | F13: 6 | G13: 340.5 | H13: =VLOOKUP(A13,CPU!$A$1:$N$4661,10) -> 422.53 | I13: =ROUND(F13*H13,2) -> 2535.18 | J13: 0.0008115646415
A14: 5 | B14: 1.5 | C14: SERVIÇOS TOPOGRÁFICOS PARA PAVIMENTAÇÃO, INCLUSIVE NOTA DE SERVIÇO, ACOMPANHAMENTO E GREIDE | D14: 78472 | E14: M2 | F14: 20500 | G14: 0.33 | H14: =VLOOKUP(A14,CPU!$A$1:$N$4661,10) -> 0.41 | I14: =ROUND(F14*H14,2) -> 8405 | J14: 0.002690617949
A15: B | B15: 2 | C15: PAVIMENTAÇÃO | I15: =SUM(I16:I22) -> 809057.6 | J15: 0.2589964188
A16: 6 | B16: 2.1 | C16: ESCAVAÇÃO HORIZONTAL EM SOLO DE 1A CATEGORIA | D16: 101116 | E16: M3 | F16: 4100 | G16: 2.2 | H16: =VLOOKUP(A16,CPU!$A$1:$N$4661,10) -> 2.73 | I16: =ROUND(F16*H16,2) -> 11193 | J16: 0.00358311561
A17: 7 | B17: 2.2 | C17: CARGA, MANOBRA E DESCARGA DE SOLOS E MATERIAIS GRANULARES EM CAMINHÃO BASCULANTE | D17: 100976 | E17: M3 | F17: 4100 | G17: 8.71 | H17: =VLOOKUP(A17,CPU!$A$1:$N$4661,10) -> 10.81 | I17: 44321 | J17: 0.01418808782
A18: 8 | B18: 2.3 | C18: REGULARIZAÇÃO E COMPACTAÇÃO DO SUBLEITO | D18: 100576 | E18: M2 | F18: 20500 | G18: 2.57 | H18: =VLOOKUP(A18,CPU!$A$1:$N$4661,10) -> 3.19 | I18: 65395 | J18: 0.02093432014
A19: 9 | B19: 2.4 | C19: EXECUÇÃO E COMPACTAÇÃO DE BASE E OU SUB BASE PARA PAVIMENTAÇÃO DE BICA CORRIDA - EXCLUSIVE TRANSPORTE | D19: 96396 | E19: M3 | F19: 3500 | G19: 118.95 | H19: =VLOOKUP(A19,CPU!$A$1:$N$4661,10) -> 147.61 | I19: 516635 | J19: 0.1653857709
A20: 10 | B20: 2.5 | C20: IMPRIMAÇÃO COM EMULSÃO ASFÁLTICA (EAI) | D20: 96401 | E20: M2 | F20: 20500 | G20: 1.23 | H20: =VLOOKUP(A20,CPU!$A$1:$N$4661,10) -> 1.53 | I20: 31365 | J20: 0.01004059869
A21: 11 | B21: 2.6 | C21: PINTURA DE LIGAÇÃO COM EMULSÃO ASFÁLTICA RR-1C | D21: 96402 | E21: M2 | F21: 18200 | G21: 1.01 | H21: =VLOOKUP(A21,CPU!$A$1:$N$4661,10) -> 1.25 | I21: 22750 | J21: 0.007282755305
A22: 12 | B22: 2.7 | C22: EXECUÇÃO DE PAVIMENTO COM APLICAÇÃO DE CONCRETO ASFÁLTICO USINADO A QUENTE (CBUQ), CAMADA DE ROLAMENTO - EXCLUSIVE TRANSPORTE | D22: 95995 | E22: M3 | F22: 730 | G22: 129.6 | H22: =VLOOKUP(A22,CPU!$A$1:$N$4661,10) -> 160.82 | I22: 117398.6 | J22: 0.03758177042
A23: C | B23: 3 | C23: TRANSPORTE DE MATERIAIS | I23: =SUM(I24:I26) -> 119375 | J23: 0.03821445778
A24: 13 | B24: 3.2 | C24: TRANSPORTE COM CAMINHÃO BASCULANTE, EM VIA URBANA PAVIMENTADA | D24: 95427 | E24: M3XKM | F24: 101999.9952 | G24: 0.73 | H24: =VLOOKUP(A24,CPU!$A$1:$N$4661,10) -> 0.91 | I24: =ROUND(F24*H24,2) -> 92820 | J24: 0.02971364165
A25: 14 | B25: 3.1 | C25: TRANSPORTE COM CAMINHÃO BASCULANTE, EM VIA URBANA EM REVESTIMENTO PRIMÁRIO | D25: 95426 | E25: M3XKM | F25: 17000 | G25: 1.07 | H25: =VLOOKUP(A25,CPU!$A$1:$N$4661,10) -> 1.33 | I25: =ROUND(F25*H25,2) -> 22610 | J25: 0.007237938349
A26: 14.5 | B26: 3.3 | C26: TRANSPORTE COM CAMINHÃO CARROCERIA 9T, EM VIA URBANA PAVIMENTADA | D26: 100947 | E26: TXKM | F26: 1500.00012 | G26: 2.12 | H26: =VLOOKUP(A26,CPU!$A$1:$N$4661,10) -> 2.63 | I26: =ROUND(F26*H26,2) -> 3945 | J26: 0.001262877788
A27: D | B27: 4 | C27: TRANSPORTE DE MATERIAL ASFÁLTICO (BDI DIFERENCIADO) | I27: =SUM(I28:I29) -> 149800 | J27: 0.04795414263
A28: 15 | B28: 4.1 | C28: TRANSPORTE DE MASSA ASFÁLTICA COM CAMINHÃO BASCULANTE, EM VIA URBANA PAVIMENTADA (BDI DIFERENCIADO) | D28: 95430 | E28: TXKM | F28: 265000 | G28: 0.45 | H28: =VLOOKUP(A28,CPU!$A$1:$N$4661,10) -> 0.52 | I28: =ROUND(F28*H28,2) -> 137800 | J28: 0.04411268928
A29: 16 | B29: 4.2 | C29: TRANSPORTE COM CAMINHÃO TANQUE DE TRANSPORTE DE MATERIAL ASFÁLTICO DE 30000 L, EM VIA URBANA PAVIMENTADA (BDI DIFERENCIADO) | D29: 102331 | E29: TXKM | F29: 20000 | G29: 0.52 | H29: =VLOOKUP(A29,CPU!$A$1:$N$4661,10) -> 0.6 | I29: =ROUND(F29*H29,2) -> 12000 | J29: 0.003841453348
A30: E | B30: 5 | C30: OBRAS COMPLEMENTARES | I30: =SUM(I31:I33) -> 463954.5 | J30: 0.1485216306
A31: 17 | B31: 5.1 | C31: GUIA (MEIO-FIO) E SARJETA CONJUGADOS DE CONCRETO, MOLDADA IN LOCO EM TRECHO RETO COM EXTRUSORA, 45 CM BASE (15 CM BASE DA GUIA + SARJETA (30 X 0,07))X 22 CM ALTURA | D31: 94267a | E31: M | F31: 5160 | G31: 57.56 | H31: =VLOOKUP(A31,CPU!$A$1:$N$4661,10) -> 71.43 | I31: =ROUND(F31*H31,2) -> 368578.8 | J31: 0.1179898554
A32: 18 | B32: 5.3 | C32: PLACA DE REGULAMENTAÇÃO EM AÇO, PELÍCULA RETRORREFLETIVA TIPO I+SI, INCLUSIVE SUPORTE METÁLICO - FORNECIMENTO E IMPLANTAÇÃO | D32: 5213440+ 5213863 | E32: UN. | F32: 30 | G32: 552.17 | H32: =VLOOKUP(A32,CPU!$A$1:$N$4661,10) -> 685.19 | I32: 20555.7 | J32: 0.006580313548
A33: 19 | B33: 5.3 | C33: PINTURA DE EIXO VIÁRIO SOBRE ASFALTO COM TINTA RETRORREFLETIVA A BASE DE RESINA ACRÍLICA COM MICROESFERAS DE VIDRO, APLICAÇÃO MECÂNICA COM DEMARCADORA AUTOPROPELIDA - ESPESSURA DE 0,10 MM | D33: 102512 | E33: M | F33: 10320 | G33: 5.84 | H33: =VLOOKUP(A33,CPU!$A$1:$N$4661,10) -> 7.25 | I33: 74820 | J33: 0.02395146162
A34: F | B34: 6 | C34: FORNECIMENTOS - MATERIAL ASFÁLTICO (BDI DIFERENCIADO) | I34: =SUM(I35:I37) -> 1414226.46 | J34: 0.4527237474
A35: 20 | B35: 6.1 | C35: AQUISIÇÃO DE EMULSÃO ASFÁLTICA PARA IMPRIMAÇÃO (EAI) - EXCLUSIVE TRANSPORTE | D35: CPU.7 | E35: T | F35: 30 | G35: 2689.76 | H35: =VLOOKUP(A35,CPU!$A$1:$N$4661,10) -> 3093.22 | I35: =ROUND(F35*H35,2) -> 92796.6 | J35: 0.02970615081
A36: 21 | B36: 6.2 | C36: AQUISIÇÃO DE EMULSAO ASFALTICA CATIONICA RR-1C - EXCLUSIVE TRANSPORTE | D36: CPU.8 | E36: T | F36: 10 | G36: 2706.7 | H36: =VLOOKUP(A36,CPU!$A$1:$N$4661,10) -> 3112.71 | I36: =ROUND(F36*H36,2) -> 31127.1 | J36: 0.009964441875
A37: 22 | B37: 6.3 | C37: AQUISIÇÃO DE CONCRETO BETUMINOSO USINADO A QUENTE (CBUQ) PARA PAVIMENTACAO ASFALTICA, PADRAO DNIT, FAIXA C, COM CAP 50/70 - EXCLUSIVE TRANSPORTE | D37: CPU.9 | E37: T | F37: 1870.004 | G37: 600 | H37: =VLOOKUP(A37,CPU!$A$1:$N$4661,10) -> 690 | I37: =ROUND(F37*H37,2) -> 1290302.76 | J37: 0.4130531548
B38: TOTAL GERAL DA OBRA COM BDI | I38: =SUM(I9,I15,I23,I30,I34,I27) -> 3123817.71 | J38: =I38/F20 -> 152.3813517 | K38: /m²

Sheet CPU
A1: 1 | B1: CODEVASF | E1: COMPOSIÇÃO DE PREÇO UNITÁRIO | I1: =H11 -> 7407.12 | J1: =H13 -> 9191.5 | K1: BDI CALCULADO: | M1: =ORÇAMENTO!I6 -> 0.2409
B2: OBRA: | C2: =ORÇAMENTO!C5 -> PAVIMENTAÇÃO ASFÁLTICA EM CBUQ – ESTRADA DE ACESSO À COMUNIDADE DE PARAGUASSU (NOVA PORTEIRINHA-MG) | G2: DATA: | H2: =ORÇAMENTO!C6 -> SETEMBRO/2023 | K2: BDI DIFERENCIADO: | M2: ='BDI FORN'!D31/100 -> 0.15
B3: SERVIÇO: | C3: =VLOOKUP(A1,ORÇAMENTO!A10:I31,3) -> MOBILIZAÇÃO E DESMOBILIZAÇÃO | E3: Referência: | F3: =VLOOKUP(A1,ORÇAMENTO!$A$10:$I$31,4) -> CPU.1 | G3: UNIDADE: | H3: =VLOOKUP(A1,ORÇAMENTO!A10:I31,5) -> GL
B5: TIPO ITEM | C5: CODIGO ITEM | D5: DESCRIÇÃO ITEM | E5: UNIDADE ITEM | F5: COEFICIENTE | G5: PRECO UNITARIO | H5: CUSTO TOTAL
B6: COMPOSICAO | C6: 89876 | D6: CAMINHÃO BASCULANTE 14 M3, COM CAVALO MECÂNICO DE CAPACIDADE MÁXIMA DE TRAÇÃO COMBINADO DE 36000 KG, POTÊNCIA 286 CV, INCLUSIVE SEMIREBOQUE COM CAÇAMBA METÁLICA | E6: CHP DIURNO. | F6: 16 | G6: 316.13 | H6: =ROUNDDOWN(F6*G6,2) -> 5058.08
B7: COMPOSICAO | C7: 89877 | D7: CAMINHÃO BASCULANTE 14 M3, COM CAVALO MECÂNICO DE CAPACIDADE MÁXIMA DE TRAÇÃO COMBINADO DE 36000 KG, POTÊNCIA 286 CV, INCLUSIVE SEMIREBOQUE COM CAÇAMBA METÁLICA | E7: CHI DIURNO. | F7: 16 | G7: 89.75 | H7: =ROUNDDOWN(F7*G7,2) -> 1436
B8: COMPOSICAO | C8: 5914640 | D8: TRANSPORTE COM CAVALO MECÂNICO COM SEMIRREBOQUE COM CAPACIDADE DE 30 T - RODOVIA PAVIMENTADA | E8: T.KM | F8: 484 | G8: 0.58 | H8: =ROUNDDOWN(F8*G8,2) -> 280.72
B9: COMPOSIÇÃO | C9: 88316 | D9: SERVENTE COM ENCARGOS COMPLEMENTARES | E9: H | F9: 32 | G9: 19.76 | H9: =ROUNDDOWN(F9*G9,2) -> 632.32
B10: PRODUÇÃO DA EQUIPE | E10: 1 | F10: CUSTO | H10: =SUM(H6:H9) -> 7407.12
B11: TOTAL | H11: =H10/E10 -> 7407.12 | I11: OK
B12: BDI % | H12: =1+$M$1 -> 1.2409
B13: TOTAL DO SERVIÇO - R$ | H13: =ROUND(H11*H12,2) -> 9191.5
A15: 2 | B15: CODEVASF | E15: COMPOSIÇÃO DE PREÇO UNITÁRIO | I15: =H30 -> 104541.48 | J15: =H32 -> 129725.52
B16: OBRA: | C16: =$C$2 -> PAVIMENTAÇÃO ASFÁLTICA EM CBUQ – ESTRADA DE ACESSO À COMUNIDADE DE PARAGUASSU (NOVA PORTEIRINHA-MG) | G16: DATA: | H16: =$H$2 -> SETEMBRO/2023
B17: SERVIÇO: | C17: =VLOOKUP(A15,ORÇAMENTO!$A$10:$I$31,3) -> ADMINISTRAÇÃO LOCAL | E17: SINAPI | F17: =VLOOKUP(A15,ORÇAMENTO!$A$10:$I$31,4) -> CPU.2 | G17: UNIDADE: | H17: =VLOOKUP(A15,ORÇAMENTO!$A$10:$I$31,5) -> GL
B19: TIPO ITEM | C19: CODIGO ITEM | D19: DESCRIÇÃO ITEM | E19: UNIDADE ITEM | F19: COEFICIENTE | G19: PRECO UNITARIO | H19: CUSTO TOTAL
B20: INSUMO | C20: 14250 | D20: ENERGIA ELÉTRICA | E20: kwh | F20: 60 | G20: 0.94 | H20: =ROUNDDOWN(F20*G20,2) -> 56.4
B21: INSUMO | C21: 44480 | D21: TARIFA "A" - ÁGUA/ESGOTO | E21: m³ | F21: 6 | G21: 17.78 | H21: 106.68
B22: COTAÇÃO | C22: MERC. | D22: TELEFONE (PLANO CONTROLE) | E22: UNID | F22: 2 | G22: 59.9 | H22: 119.8
B23: INSUMO | C23: ED-50155 SEINFRA | D23: BANHEIRO QUÍMICO 110 X 120 X 230 CM COM MANUTENÇÃO (CONSIDERANDO OBRAS SIMULTÂNEAS) | E23: MÊS | F23: 2 | G23: 820 | H23: 1640
B24: COMPOSICAO | C24: 90777 | D24: Engenheiro Civil Júnior com encargos complementares | E24: H | F24: 45 | G24: 114.12 | H24: 5135.4
B25: COMPOSICAO | C25: 90776 | D25: Encarregado Geral com encargos complementares | E25: H | F25: 90 | G25: 57.73 | H25: 5195.7
B26: COMPOSICAO | C26: 88321 | D26: Tecnico de Laboratório com encargos complementares | E26: H | F26: 45 | G26: 45.45 | H26: 2045.25
B27: COMPOSICAO | C27: 100309 | D27: Tecnico em Segurança do Trabalho com encargos complementares | E27: H | F27: 45 | G27: 45.71 | H27: =ROUNDDOWN(F27*G27,2) -> 2056.95
B28: COMPOSICAO | C28: 90772 | D28: Auxiliar de escritório com encargos complementares | E28: H | F28: 45 | G28: 23.72 | H28: 1067.4
B29: PRODUÇÃO DA EQUIPE | E29: =1/6 -> 0.1666666667 | F29: CUSTO | H29: =SUM(H20:H28) -> 17423.58
B30: TOTAL | H30: =ROUND(H29/E29,2) -> 104541.48 | I30: OK
B31: BDI % | H31: =1+$M$1 -> 1.2409
B32: TOTAL DO SERVIÇO - R$ | H32: =ROUND(H30*H31,2) -> 129725.52
A34: =A15+1 -> 3 | B34: CODEVASF | E34: COMPOSIÇÃO DE PREÇO UNITÁRIO | I34: =H44 -> 14140.5 | J34: =H46 -> 17546.95
B35: OBRA: | C35: =$C$2 -> PAVIMENTAÇÃO ASFÁLTICA EM CBUQ – ESTRADA DE ACESSO À COMUNIDADE DE PARAGUASSU (NOVA PORTEIRINHA-MG) | G35: DATA: | H35: =$H$2 -> SETEMBRO/2023
B36: SERVIÇO: | C36: =VLOOKUP(A34,ORÇAMENTO!$A$10:$I$31,3) -> CANTEIRO DE OBRAS | E36: SINAPI | F36: =VLOOKUP(A34,ORÇAMENTO!$A$10:$I$31,4) -> CPU.3 | G36: UNIDADE: | H36: =VLOOKUP(A34,ORÇAMENTO!$A$10:$I$31,5) -> GL
B38: TIPO ITEM | C38: CODIGO ITEM | D38: DESCRIÇÃO ITEM | E38: UNIDADE ITEM | F38: COEFICIENTE | G38: PRECO UNITARIO | H38: CUSTO TOTAL
B39: INSUMO | C39: 10775 | D39: ALUGUEL DE IMÓVEL OU CONTEINER QUE ATENDA AOS REQUISITOS MÍNIMOS PARA INSTALAÇÃO DO CANTEIRO DE OBRAS | E39: MÊS | F39: 6 | G39: 975 | H39: =ROUNDDOWN(F39*G39,2) -> 5850
B40: INSUMO | C40: 10779 | D40: LOCACAO DE CONTAINER 2,30 X 4,30 M, ALT. 2,50 M, P/ SANITARIO, C/ 5 BACIAS, 1 LAVATORIO E 4 MICTORIOS | E40: MÊS | F40: 6 | G40: 1218.75 | H40: =ROUNDDOWN(F40*G40,2) -> 7312.5
B41: INSUMO | C41: 37525 | D41: TELA PLASTICA TECIDA LISTRADA BRANCA E LARANJA, TIPO GUARDA CORPO, EM POLIETILENO MONOFILADO, ROLO 1,20 X 50 M (L X C) | E41: M | F41: 200 | G41: 3.69 | H41: =ROUNDDOWN(F41*G41,2) -> 738
B42: COMPOSICAO | C42: - | D42: PLACA DE SINALIZAÇÃO - "PERIGO - OBRAS A FRENTE" - FORNECIMENTO E MOVIMENTAÇÃO | E42: UNID. | F42: 12 | G42: 20 | H42: =ROUNDDOWN(F42*G42,2) -> 240
B43: PRODUÇÃO DA EQUIPE | E43: 1 | F43: CUSTO | H43: =SUM(H39:H42) -> 14140.5
B44: TOTAL | H44: =H43/E43 -> 14140.5 | I44: OK
B45: BDI % | H45: =1+$M$1 -> 1.2409
B46: TOTAL DO SERVIÇO - R$ | H46: =ROUND(H44*H45,2) -> 17546.95
A48: =A34+1 -> 4 | B48: CODEVASF | E48: COMPOSIÇÃO DE PREÇO UNITÁRIO | I48: =H62 -> 340.5 | J48: =H64 -> 422.53
B49: OBRA: | C49: =$C$2 -> PAVIMENTAÇÃO ASFÁLTICA EM CBUQ – ESTRADA DE ACESSO À COMUNIDADE DE PARAGUASSU (NOVA PORTEIRINHA-MG) | G49: DATA: | H49: =$H$2 -> SETEMBRO/2023
B50: SERVIÇO: | C50: =VLOOKUP(A48,ORÇAMENTO!$A$10:$I$31,3) -> PLACA DE OBRA EM CHAPA DE AÇO GALVANIZADO | E50: SINAPI | F50: =VLOOKUP(A48,ORÇAMENTO!$A$10:$I$31,4) -> 103689 | G50: UNIDADE: | H50: =VLOOKUP(A48,ORÇAMENTO!$A$10:$I$31,5) -> M2
B52: TIPO ITEM | C52: CODIGO ITEM | D52: DESCRIÇÃO ITEM | E52: UNIDADE ITEM | F52: COEFICIENTE | G52: PRECO UNITARIO | H52: CUSTO TOTAL
B53: INSUMO | C53: 4509 | D53: SARRAFO *2,5 X 10* CM EM PINUS, MISTA OU EQUIVALENTE DA REGIAO - BRUTA | E53: M | F53: 3,2083000 | G53: 4,41 | H53: =ROUNDDOWN(F53*G53,2) -> 14.14
B54: INSUMO | C54: 4813 | D54: PLACA DE OBRA (PARA CONSTRUCAO CIVIL) EM CHAPA GALVANIZADA *N. 22*, ADESIVADA, DE *2,4 X 1,2* M | E54: M2 | F54: 1,0000000 | G54: 250,00 | H54: 250
B55: INSUMO | C55: 4115 | D55: MADEIRA ROLICA TRATADA, D = 12 A 15 CM, EM EUCALIPTO OU EQUIVALENTE DA REGIAO | E55: M | F55: 2 | G55: 21.76 | H55: 43.52
B56: INSUMO | C56: 5065 | D56: PREGO DE ACO POLIDO COM CABECA 10 X 10 (7/8 X 17) | E56: KG | F56: 0,0113000 | G56: 36,57 | H56: 0.41
B57: INSUMO | C57: 5069 | D57: PREGO DE ACO POLIDO COM CABECA 17 X 27 (2 1/2 X 11) | E57: KG | F57: 0,0132000 | G57: 19,59 | H57: 0.25
B58: COMPOSICAO | C58: 88262 | D58: CARPINTEIRO DE FORMAS COM ENCARGOS COMPLEMENTARES | E58: H | F58: 0,3729000 | G58: 27,05 | H58: 10.08
B59: COMPOSICAO | C59: 88316 | D59: SERVENTE COM ENCARGOS COMPLEMENTARES | E59: H | F59: 1,1186000 | G59: 19,76 | H59: 22.1
H60: 0
B61: PRODUÇÃO DA EQUIPE | E61: 1 | F61: CUSTO | H61: =SUM(H53:H60) -> 340.5
B62: TOTAL | H62: =H61/E61 -> 340.5 | I62: OK
B63: BDI % | H63: =1+$M$1 -> 1.2409
B64: TOTAL DO SERVIÇO - R$ | H64: =ROUND(H62*H63,2) -> 422.53
A66: =A48+1 -> 5 | B66: CODEVASF | E66: COMPOSIÇÃO DE PREÇO UNITÁRIO | I66: =H78 -> 0.33 | J66: =H80 -> 0.41
B67: OBRA: | C67: =$C$2 -> PAVIMENTAÇÃO ASFÁLTICA EM CBUQ – ESTRADA DE ACESSO À COMUNIDADE DE PARAGUASSU (NOVA PORTEIRINHA-MG) | G67: DATA: | H67: =$H$2 -> SETEMBRO/2023
B68: SERVIÇO: | C68: =VLOOKUP(A66,ORÇAMENTO!$A$10:$I$31,3) -> SERVIÇOS TOPOGRÁFICOS PARA PAVIMENTAÇÃO, INCLUSIVE NOTA DE SERVIÇO, ACOMPANHAMENTO E GREIDE | E68: SINAPI | F68: =VLOOKUP(A66,ORÇAMENTO!$A$10:$I$31,4) -> 78472 | G68: UNIDADE: | H68: =VLOOKUP(A66,ORÇAMENTO!$A$10:$I$31,5) -> M2
B70: TIPO ITEM | C70: CODIGO ITEM | D70: DESCRIÇÃO ITEM | E70: UNIDADE ITEM | F70: COEFICIENTE | G70: PRECO UNITARIO | H70: CUSTO TOTAL
B71: COMPOSICAO | C71: 88253 | D71: AUXILIAR DE TOPÓGRAFO COM ENCARGOS COMPLEMENTARES | E71: H | F71: 0.0025 | G71: 21.57 | H71: =ROUNDDOWN(F71*G71,2) -> 0.05
B72: COMPOSICAO | C72: 88288 | D72: NIVELADOR COM ENCARGOS COMPLEMENTARES | E72: H | F72: 0.0025 | G72: 26.99 | H72: 0.06
B73: COMPOSICAO | C73: 88316 | D73: SERVENTE COM ENCARGOS COMPLEMENTARES | E73: H | F73: 0.0075 | G73: 19.76 | H73: 0.14
B74: COMPOSICAO | C74: 88597 | D74: DESENHISTA DETALHISTA COM ENCARGOS COMPLEMENTARES | E74: H | F74: 0.002 | G74: 29.72 | H74: 0.05
B75: COMPOSICAO | C75: 92145 | D75: CAMINHONETE CABINE SIMPLES COM MOTOR 1.6 FLEX, CÂMBIO MANUAL, POTÊNCIA 101/104 CV, 2 PORTAS | E75: CHP | F75: 0.0005 | G75: 74.75 | H75: 0.03
H76: 0
B77: PRODUÇÃO DA EQUIPE | E77: 1 | F77: CUSTO | H77: =SUM(H71:H76) -> 0.33
B78: TOTAL | H78: =H77/E77 -> 0.33 | I78: OK
B79: BDI % | H79: =1+$M$1 -> 1.2409
B80: TOTAL DO SERVIÇO - R$ | H80: =ROUND(H78*H79,2) -> 0.41
A82: =A66+1 -> 6 | B82: CODEVASF | E82: COMPOSIÇÃO DE PREÇO UNITÁRIO | I82: =H91 -> 2.2 | J82: =H93 -> 2.73
B83: OBRA: | C83: =$C$2 -> PAVIMENTAÇÃO ASFÁLTICA EM CBUQ – ESTRADA DE ACESSO À COMUNIDADE DE PARAGUASSU (NOVA PORTEIRINHA-MG) | G83: DATA: | H83: =$H$2 -> SETEMBRO/2023 | J83: =H94 -> 0
B84: SERVIÇO: | C84: =VLOOKUP(A82,ORÇAMENTO!$A$10:$I$31,3) -> ESCAVAÇÃO HORIZONTAL EM SOLO DE 1A CATEGORIA | E84: SINAPI | F84: =VLOOKUP(A82,ORÇAMENTO!$A$10:$I$31,4) -> 101116 | G84: UNIDADE: | H84: =VLOOKUP(A82,ORÇAMENTO!$A$10:$I$31,5) -> M3
B86: TIPO ITEM | C86: CODIGO ITEM | D86: DESCRIÇÃO ITEM | E86: UNIDADE ITEM | F86: COEFICIENTE | G86: PRECO UNITARIO | H86: CUSTO TOTAL
B87: COMPOSICAO | C87: 5847 | D87: TRATOR DE ESTEIRAS, POTÊNCIA 170 HP, PESO OPERACIONAL 19 T, CAÇAMBA 5,2 M3 | E87: CHP | F87: 0,0048000 | G87: 253,93 | H87: =ROUNDDOWN(F87*G87,2) -> 1.21
B88: COMPOSICAO | C88: 5849 | D88: TRATOR DE ESTEIRAS, POTÊNCIA 170 HP, PESO OPERACIONAL 19 T, CAÇAMBA 5,2 M3 | E88: CHI | F88: 0,0082000 | G88: 90,40 | H88: =ROUNDDOWN(F88*G88,2) -> 0.74
B89: COMPOSICAO | C89: 88316 | D89: SERVENTE COM ENCARGOS COMPLEMENTARES | E89: H | F89: 0,0131000 | G89: 19,76 | H89: =ROUNDDOWN(F89*G89,2) -> 0.25
B90: PRODUÇÃO DA EQUIPE | E90: 1 | F90: CUSTO | H90: =SUM(H87:H89) -> 2.2
B91: TOTAL | H91: =H90/E90 -> 2.2 | I91: OK
B92: BDI % | H92: =1+$M$1 -> 1.2409
B93: TOTAL DO SERVIÇO - R$ | H93: =ROUND(H91*H92,2) -> 2.73
A95: 7 | B95: CODEVASF | E95: COMPOSIÇÃO DE PREÇO UNITÁRIO | I95: =H105 -> 8.71 | J95: =H107 -> 10.81
B96: OBRA: | C96: =$C$2 -> PAVIMENTAÇÃO ASFÁLTICA EM CBUQ – ESTRADA DE ACESSO À COMUNIDADE DE PARAGUASSU (NOVA PORTEIRINHA-MG) | G96: DATA: | H96: =$H$2 -> SETEMBRO/2023
B97: SERVIÇO: | C97: =VLOOKUP(A95,ORÇAMENTO!$A$10:$I$31,3) -> CARGA, MANOBRA E DESCARGA DE SOLOS E MATERIAIS GRANULARES EM CAMINHÃO BASCULANTE | E97: SINAPI | F97: =VLOOKUP(A95,ORÇAMENTO!$A$10:$I$31,4) -> 100976 | G97: UNIDADE: | H97: =VLOOKUP(A95,ORÇAMENTO!$A$10:$I$31,5) -> M3
B99: TIPO ITEM | C99: CODIGO ITEM | D99: DESCRIÇÃO ITEM | E99: UNIDADE ITEM | F99: COEFICIENTE | G99: PRECO UNITARIO | H99: CUSTO TOTAL
B100: COMPOSICAO | C100: 5940 | D100: PÁ CARREGADEIRA SOBRE RODAS, POTÊNCIA LÍQUIDA 128 HP, CAPACIDADE DA CAÇAMBA 1,7 A 2,8 M3, PESO OPERACIONAL 11632 KG | E100: CHP | F100: 0,0083000 | G100: 217,72 | H100: =ROUNDDOWN(F100*G100,2) -> 1.8
B101: COMPOSICAO | C101: 5942 | D101: PÁ CARREGADEIRA SOBRE RODAS, POTÊNCIA LÍQUIDA 128 HP, CAPACIDADE DA CAÇAMBA 1,7 A 2,8 M3, PESO OPERACIONAL 11632 KG | E101: CHI | F101: 0,0074000 | G101: 95,85 | H101: =ROUNDDOWN(F101*G101,2) -> 0.7
B102: COMPOSICAO | C102: 89883 | D102: CAMINHÃO BASCULANTE 18 M3, COM CAVALO MECÂNICO DE CAPACIDADE MÁXIMA DE TRAÇÃO COMBINADO DE 45000 KG, POTÊNCIA 330 CV, INCLUSIVE SEMIREBOQUE COM CAÇAMBA METÁLICA | E102: CHP | F102: 0,0153000 | G102: 348,45 | H102: =ROUNDDOWN(F102*G102,2) -> 5.33
B103: COMPOSICAO | C103: 89884 | D103: CAMINHÃO BASCULANTE 18 M3, COM CAVALO MECÂNICO DE CAPACIDADE MÁXIMA DE TRAÇÃO COMBINADO DE 45000 KG, POTÊNCIA 330 CV, INCLUSIVE SEMIREBOQUE COM CAÇAMBA METÁLICA | E103: CHI | F103: 0,0095000 | G103: 93,65 | H103: =ROUNDDOWN(F103*G103,2) -> 0.88
B104: PRODUÇÃO DA EQUIPE | E104: 1 | F104: CUSTO | H104: =SUM(H100:H103) -> 8.71
B105: TOTAL | H105: =H104/E104 -> 8.71 | I105: OK
B106: BDI % | H106: =1+$M$1 -> 1.2409
B107: TOTAL DO SERVIÇO - R$ | H107: =ROUND(H105*H106,2) -> 10.81
A109: 8 | B109: CODEVASF | E109: COMPOSIÇÃO DE PREÇO UNITÁRIO | I109: =H123 -> 2.57 | J109: =H125 -> 3.19
B110: OBRA: | C110: =$C$2 -> PAVIMENTAÇÃO ASFÁLTICA EM CBUQ – ESTRADA DE ACESSO À COMUNIDADE DE PARAGUASSU (NOVA PORTEIRINHA-MG) | G110: DATA: | H110: =$H$2 -> SETEMBRO/2023
B111: SERVIÇO: | C111: =VLOOKUP(A109,ORÇAMENTO!$A$10:$I$31,3) -> REGULARIZAÇÃO E COMPACTAÇÃO DO SUBLEITO | E111: SICRO | F111: =VLOOKUP(A109,ORÇAMENTO!$A$10:$I$31,4) -> 100576 | G111: UNIDADE: | H111: M2
B113: TIPO ITEM | C113: CODIGO ITEM | D113: DESCRIÇÃO ITEM | E113: UNIDADE ITEM | F113: COEFICIENTE | G113: PRECO UNITARIO | H113: CUSTO TOTAL
B114: COMPOSICAO | C114: 5901 | D114: CAMINHÃO PIPA 10.000 L TRUCADO, PESO BRUTO TOTAL 23.000 KG, CARGA ÚTIL MÁXIMA 15.935 KG, DISTÂNCIA ENTRE EIXOS 4,8 M, POTÊNCIA 230 CV, INCLUSIVE TANQUE DE AÇO PARA TRANSPORTE DE ÁGUA | E114: CHP | F114: 0,0010000 | G114: 294,94 | H114: 0.29
B115: COMPOSICAO | C115: 5903 | D115: CAMINHÃO PIPA 10.000 L TRUCADO, PESO BRUTO TOTAL 23.000 KG, CARGA ÚTIL MÁXIMA 15.935 KG, DISTÂNCIA ENTRE EIXOS 4,8 M, POTÊNCIA 230 CV, INCLUSIVE TANQUE DE AÇO PARA TRANSPORTE DE ÁGUA | E115: CHI | F115: 0,0070000 | G115: 72,55 | H115: 0.5
B116: COMPOSICAO | C116: 5932 | D116: MOTONIVELADORA POTÊNCIA BÁSICA LÍQUIDA (PRIMEIRA MARCHA) 125 HP, PESO BRUTO 13032 KG, LARGURA DA LÂMINA DE 3,7 M | E116: CHP | F116: 0,0001000 | G116: 262,71 | H116: 0.02
B117: COMPOSICAO | C117: 5934 | D117: MOTONIVELADORA POTÊNCIA BÁSICA LÍQUIDA (PRIMEIRA MARCHA) 125 HP, PESO BRUTO 13032 KG, LARGURA DA LÂMINA DE 3,7 M | E117: CHI | F117: 0,0080000 | G117: 109,40 | H117: 0.87
B118: COMPOSICAO | C118: 73436 | D118: ROLO COMPACTADOR VIBRATÓRIO PÉ DE CARNEIRO PARA SOLOS, POTÊNCIA 80 HP, PESO OPERACIONAL SEM/COM LASTRO 7,4 / 8,8 T, LARGURA DE TRABALHO 1,68 M | E118: CHP | F118: 0,0020000 | G118: 163,19 | H118: 0.32
B119: COMPOSICAO | C119: 88316 | D119: SERVENTE COM ENCARGOS COMPLEMENTARES | E119: H | F119: 0,0080000 | G119: 19,76 | H119: 0.15
B120: COMPOSICAO | C120: 93244 | D120: ROLO COMPACTADOR VIBRATÓRIO PÉ DE CARNEIRO PARA SOLOS, POTÊNCIA 80 HP, PESO OPERACIONAL SEM/COM LASTRO 7,4 / 8,8 T, LARGURA DE TRABALHO 1,68 M | E120: CHI | F120: 0,0060000 | G120: 71,18 | H120: 0.42
B122: PRODUÇÃO DA EQUIPE | E122: 1 | F122: CUSTO | H122: =SUM(H114:H121) -> 2.57
B123: TOTAL | H123: =H122/E122 -> 2.57 | I123: OK
B124: BDI % | H124: =1+$M$1 -> 1.2409
B125: TOTAL DO SERVIÇO - R$ | H125: =ROUND(H123*H124,2) -> 3.19
A127: 9 | B127: CODEVASF | E127: COMPOSIÇÃO DE PREÇO UNITÁRIO | I127: =H143 -> 118.95 | J127: =H145 -> 147.61
B128: OBRA: | C128: =$C$2 -> PAVIMENTAÇÃO ASFÁLTICA EM CBUQ – ESTRADA DE ACESSO À COMUNIDADE DE PARAGUASSU (NOVA PORTEIRINHA-MG) | G128: DATA: | H128: =$H$2 -> SETEMBRO/2023
B129: SERVIÇO: | C129: =VLOOKUP(A127,ORÇAMENTO!$A$10:$I$31,3) -> EXECUÇÃO E COMPACTAÇÃO DE BASE E OU SUB BASE PARA PAVIMENTAÇÃO DE BICA CORRIDA - EXCLUSIVE TRANSPORTE | E129: SINAPI | F129: =VLOOKUP(A127,ORÇAMENTO!$A$10:$I$31,4) -> 96396 | G129: UNIDADE: | H129: =VLOOKUP(A127,ORÇAMENTO!$A$10:$I$31,5) -> M3
B131: TIPO ITEM | C131: CODIGO ITEM | D131: DESCRIÇÃO ITEM | E131: UNIDADE ITEM | F131: COEFICIENTE | G131: PRECO UNITARIO | H131: CUSTO TOTAL
B132: COMPOSICAO | C132: 5684 | D132: ROLO COMPACTADOR VIBRATÓRIO DE UM CILINDRO AÇO LISO, POTÊNCIA 80 HP, PESO OPERACIONAL MÁXIMO 8,1 T, IMPACTO DINÂMICO 16,15 / 9,5 T, LARGURA DE TRABALHO 1,68 M | E132: CHP | F132: 0,0090000 | G132: 159,98 | H132: =ROUNDDOWN(F132*G132,2) -> 1.43
B133: COMPOSICAO | C133: 5685 | D133: ROLO COMPACTADOR VIBRATÓRIO DE UM CILINDRO AÇO LISO, POTÊNCIA 80 HP, PESO OPERACIONAL MÁXIMO 8,1 T, IMPACTO DINÂMICO 16,15 / 9,5 T, LARGURA DE TRABALHO 1,68 M | E133: CHI | F133: 0,0210000 | G133: 69,53 | H133: 1.46
B134: COMPOSICAO | C134: 5901 | D134: CAMINHÃO PIPA 10.000 L TRUCADO, PESO BRUTO TOTAL 23.000 KG, CARGA ÚTIL MÁXIMA 15.935 KG, DISTÂNCIA ENTRE EIXOS 4,8 M, POTÊNCIA 230 CV, INCLUSIVE TANQUE DE AÇO PARA TRANSPORTE DE ÁGUA | E134: CHP | F134: 0,0020000 | G134: 294,94 | H134: 0.58
B135: COMPOSICAO | C135: 5903 | D135: CAMINHÃO PIPA 10.000 L TRUCADO, PESO BRUTO TOTAL 23.000 KG, CARGA ÚTIL MÁXIMA 15.935 KG, DISTÂNCIA ENTRE EIXOS 4,8 M, POTÊNCIA 230 CV, INCLUSIVE TANQUE DE AÇO PARA TRANSPORTE DE ÁGUA | E135: CHI | F135: 0,0280000 | G135: 72,55 | H135: 2.03
B136: COMPOSICAO | C136: 5932 | D136: MOTONIVELADORA POTÊNCIA BÁSICA LÍQUIDA (PRIMEIRA MARCHA) 125 HP, PESO BRUTO 13032 KG, LARGURA DA LÂMINA DE 3,7 M | E136: CHP | F136: 0,0080000 | G136: 262,71 | H136: 2.1
B137: COMPOSICAO | C137: 5934 | D137: MOTONIVELADORA POTÊNCIA BÁSICA LÍQUIDA (PRIMEIRA MARCHA) 125 HP, PESO BRUTO 13032 KG, LARGURA DA LÂMINA DE 3,7 M | E137: CHI | F137: 0,0220000 | G137: 109,40 | H137: 2.4
B138: COMPOSICAO | C138: 88316 | D138: SERVENTE COM ENCARGOS COMPLEMENTARES | E138: H | F138: 0,0300000 | G138: 19,76 | H138: 0.59
B139: COMPOSICAO | C139: 4748 | D139: PEDRA BRITADA OU BICA CORRIDA, NAO CLASSIFICADA (POSTO PEDREIRA/FORNECEDOR, SEM FRETE) | E139: M3 | F139: 1,0000000 | G139: 105 | H139: 105
B140: COMPOSICAO | C140: 96463 | D140: ROLO COMPACTADOR DE PNEUS, ESTATICO, PRESSAO VARIAVEL, POTENCIA 110 HP, PESO SEM/COM LASTRO 10,8/27 T, LARGURA DE ROLAGEM 2,30 M | E140: CHP | F140: 0,0040000 | G140: 218,21 | H140: 0.87
B141: COMPOSICAO | C141: 96464 | D141: ROLO COMPACTADOR DE PNEUS, ESTATICO, PRESSAO VARIAVEL, POTENCIA 110 HP, PESO SEM/COM LASTRO 10,8/27 T, LARGURA DE ROLAGEM 2,30 M | E141: CHI | F141: 0,0260000 | G141: 95,83 | H141: 2.49
B142: PRODUÇÃO DA EQUIPE | E142: 1 | F142: CUSTO | H142: =SUM(H132:H141) -> 118.95
B143: TOTAL | H143: =H142/E142 -> 118.95 | I143: OK
B144: BDI % | H144: =1+$M$1 -> 1.2409
B145: TOTAL DO SERVIÇO - R$ | H145: =ROUND(H143*H144,2) -> 147.61
A147: 10 | B147: CODEVASF | E147: COMPOSIÇÃO DE PREÇO UNITÁRIO | I147: =H162 -> 1.23 | J147: =H164 -> 1.53
B148: OBRA: | C148: =$C$2 -> PAVIMENTAÇÃO ASFÁLTICA EM CBUQ – ESTRADA DE ACESSO À COMUNIDADE DE PARAGUASSU (NOVA PORTEIRINHA-MG) | G148: DATA: | H148: =$H$2 -> SETEMBRO/2023
B149: SERVIÇO: | C149: =VLOOKUP(A147,ORÇAMENTO!$A$10:$I$31,3) -> IMPRIMAÇÃO COM EMULSÃO ASFÁLTICA (EAI) | E149: SINAPI | F149: =VLOOKUP(A147,ORÇAMENTO!$A$10:$I$31,4) -> 96401 | G149: UNIDADE: | H149: =VLOOKUP(A147,ORÇAMENTO!$A$10:$I$31,5) -> M2
B151: TIPO ITEM | C151: CODIGO ITEM | D151: DESCRIÇÃO ITEM | E151: UNIDADE ITEM | F151: COEFICIENTE | G151: PRECO UNITARIO | H151: CUSTO TOTAL
B152: COMPOSICAO | C152: 5839 | D152: VASSOURA MECÂNICA REBOCÁVEL COM ESCOVA CILÍNDRICA, LARGURA ÚTIL DE VARRIMENTO DE 2,44 M | E152: CHP | F152: 0,0020000 | G152: 10.3 | H152: =ROUNDDOWN(F152*G152,2) -> 0.02
B153: COMPOSICAO | C153: 5841 | D153: VASSOURA MECÂNICA REBOCÁVEL COM ESCOVA CILÍNDRICA, LARGURA ÚTIL DE VARRIMENTO DE 2,44 M | E153: CHI | F153: 0,0040000 | G153: 5.18 | H153: 0.02
B154: INSUMO | C154: ANP | D154: EMULSÃO ASFÁLTICA PARA IMPRIMAÇÃO - EAI (FORNECIMENTO COM BDI DIFERENCIADO) | E154: T | F154: =1.3/1000 -> 0.0013 | H154: 0
B155: COMPOSICAO | C155: 83362 | D155: ESPARGIDOR DE ASFALTO PRESSURIZADO, TANQUE 6 M3 COM ISOLAÇÃO TÉRMICA, AQUECIDO COM 2 MAÇARICOS, COM BARRA ESPARGIDORA 3,60 M, MONTADO SOBRE CAMINHÃO TOCO, PBT 14.300 KG, POTÊNCIA 185 CV | E155: CHP | F155: 0,0010000 | G155: 256.34 | H155: 0.25
B156: COMPOSICAO | C156: 88316 | D156: SERVENTE COM ENCARGOS COMPLEMENTARES | E156: H | F156: 0,0060000 | G156: 19.76 | H156: 0.11
B157: COMPOSICAO | C157: 89035 | D157: TRATOR DE PNEUS, POTÊNCIA 85 CV, TRAÇÃO 4X4, PESO COM LASTRO DE 4.675 KG | E157: CHP | F157: 0,0020000 | G157: 135.08 | H157: 0.27
B158: COMPOSICAO | C158: 89036 | D158: TRATOR DE PNEUS, POTÊNCIA 85 CV, TRAÇÃO 4X4, PESO COM LASTRO DE 4.675 KG | E158: CHI | F158: 0,0040000 | G158: 56.48 | H158: 0.22
B159: COMPOSICAO | C159: 91486 | D159: ESPARGIDOR DE ASFALTO PRESSURIZADO, TANQUE 6 M3 COM ISOLAÇÃO TÉRMICA, AQUECIDO COM 2 MAÇARICOS, COM BARRA ESPARGIDORA 3,60 M, MONTADO SOBRE CAMINHÃO TOCO, PBT 14.300 KG, POTÊNCIA 185 CV | E159: CHI | F159: 0,0050000 | G159: 68.43 | H159: 0.34
H160: 0
B161: PRODUÇÃO DA EQUIPE | E161: 1 | F161: CUSTO | H161: =SUM(H152:H160) -> 1.23
B162: TOTAL | H162: =H161/E161 -> 1.23 | I162: OK
B163: BDI % | H163: =1+$M$1 -> 1.2409
B164: TOTAL DO SERVIÇO - R$ | H164: =ROUND(H162*H163,2) -> 1.53
A166: 11 | B166: CODEVASF | E166: COMPOSIÇÃO DE PREÇO UNITÁRIO | I166: =H181 -> 1.01 | J166: =H183 -> 1.25
B167: OBRA: | C167: =$C$2 -> PAVIMENTAÇÃO ASFÁLTICA EM CBUQ – ESTRADA DE ACESSO À COMUNIDADE DE PARAGUASSU (NOVA PORTEIRINHA-MG) | G167: DATA: | H167: =$H$2 -> SETEMBRO/2023
B168: SERVIÇO: | C168: =VLOOKUP(A166,ORÇAMENTO!$A$10:$I$31,3) -> PINTURA DE LIGAÇÃO COM EMULSÃO ASFÁLTICA RR-1C | E168: SINAPI | F168: =VLOOKUP(A166,ORÇAMENTO!$A$10:$I$31,4) -> 96402 | G168: UNIDADE: | H168: M2
B170: TIPO ITEM | C170: CODIGO ITEM | D170: DESCRIÇÃO ITEM | E170: UNIDADE ITEM | F170: COEFICIENTE | G170: PRECO UNITARIO | H170: CUSTO TOTAL
B171: COMPOSICAO | C171: 5839 | D171: VASSOURA MECÂNICA REBOCÁVEL COM ESCOVA CILÍNDRICA, LARGURA ÚTIL DE VARRIMENTO DE 2,44 M | E171: CHP | F171: 0,0020000 | G171: 10.3 | H171: =ROUNDDOWN(F171*G171,2) -> 0.02
B172: COMPOSICAO | C172: 5841 | D172: VASSOURA MECÂNICA REBOCÁVEL COM ESCOVA CILÍNDRICA, LARGURA ÚTIL DE VARRIMENTO DE 2,44 M | E172: CHI | F172: 0,0040000 | G172: 5.18 | H172: 0.02
B173: INSUMO | C173: 41903 | D173: EMULSAO ASFALTICA CATIONICA RR-2C PARA USO EM PAVIMENTACAO ASFALTICA (FORNECIMENTO COM BDI DIFERENCIADO) | E173: KG | F173: 0,4500000 | H173: 0
B174: COMPOSICAO | C174: 83362 | D174: ESPARGIDOR DE ASFALTO PRESSURIZADO, TANQUE 6 M3 COM ISOLAÇÃO TÉRMICA, AQUECIDO COM 2 MAÇARICOS, COM BARRA ESPARGIDORA 3,60 M, MONTADO SOBRE CAMINHÃO TOCO, PBT 14.300 KG, POTÊNCIA 185 CV | E174: CHP | F174: 0,0004000 | G174: 256.34 | H174: 0.1
B175: COMPOSICAO | C175: 88316 | D175: SERVENTE COM ENCARGOS COMPLEMENTARES | E175: H | F175: 0,0055000 | G175: 19.76 | H175: 0.1
B176: COMPOSICAO | C176: 89035 | D176: TRATOR DE PNEUS, POTÊNCIA 85 CV, TRAÇÃO 4X4, PESO COM LASTRO DE 4.675 KG | E176: CHP | F176: 0,0017000 | G176: 135.08 | H176: 0.22
B177: COMPOSICAO | C177: 89036 | D177: TRATOR DE PNEUS, POTÊNCIA 85 CV, TRAÇÃO 4X4, PESO COM LASTRO DE 4.675 KG | E177: CHI | F177: 0,0038000 | G177: 56.48 | H177: 0.21
B178: COMPOSICAO | C178: 91486 | D178: ESPARGIDOR DE ASFALTO PRESSURIZADO, TANQUE 6 M3 COM ISOLAÇÃO TÉRMICA, AQUECIDO COM 2 MAÇARICOS, COM BARRA ESPARGIDORA 3,60 M, MONTADO SOBRE CAMINHÃO TOCO, PBT 14.300 KG, POTÊNCIA 185 CV | E178: CHI | F178: 0,0051000 | G178: 68.43 | H178: 0.34
H179: 0
B180: PRODUÇÃO DA EQUIPE | E180: 1 | F180: CUSTO | H180: =SUM(H171:H179) -> 1.01
B181: TOTAL | H181: =H180/E180 -> 1.01 | I181: OK
B182: BDI % | H182: =1+$M$1 -> 1.2409
B183: TOTAL DO SERVIÇO - R$ | H183: =ROUND(H181*H182,2) -> 1.25
A185: 12 | B185: CODEVASF | E185: COMPOSIÇÃO DE PREÇO UNITÁRIO | I185: =H203 -> 129.6 | J185: =H205 -> 160.82
B186: OBRA: | C186: =$C$2 -> PAVIMENTAÇÃO ASFÁLTICA EM CBUQ – ESTRADA DE ACESSO À COMUNIDADE DE PARAGUASSU (NOVA PORTEIRINHA-MG) | G186: DATA: | H186: =$H$2 -> SETEMBRO/2023
B187: SERVIÇO: | C187: =VLOOKUP(A185,ORÇAMENTO!$A$10:$I$31,3) -> EXECUÇÃO DE PAVIMENTO COM APLICAÇÃO DE CONCRETO ASFÁLTICO USINADO A QUENTE (CBUQ), CAMADA DE ROLAMENTO - EXCLUSIVE TRANSPORTE | E187: SINAPI | F187: =VLOOKUP(A185,ORÇAMENTO!$A$10:$I$31,4) -> 95995 | G187: UNIDADE: | H187: =VLOOKUP(A185,ORÇAMENTO!$A$10:$I$31,5) -> M3
B189: TIPO ITEM | C189: CODIGO ITEM | D189: DESCRIÇÃO ITEM | E189: UNIDADE ITEM | F189: COEFICIENTE | G189: PRECO UNITARIO | H189: CUSTO TOTAL
B190: INSUMO | C190: 1518 | D190: CONCRETO BETUMINOSO USINADO A QUENTE (CBUQ) PARA PAVIMENTACAO ASFALTICA, PADRAO DNIT, FAIXA C, COM CAP 50/70 - AQUISICAO POSTO USINA | E190: T | F190: 2,5548000 | H190: =ROUNDDOWN(F190*G190,2) -> 0 | I190: 612,50
B191: COMPOSICAO | C191: 5835 | D191: VIBROACABADORA DE ASFALTO SOBRE ESTEIRAS, LARGURA DE PAVIMENTAÇÃO 1,90 M A 5,30 M, POTÊNCIA 105 HP CAPACIDADE 450 T/H | E191: CHP | F191: 0,0464000 | G191: 396,75 | H191: 18.4
B192: COMPOSICAO | C192: 5837 | D192: VIBROACABADORA DE ASFALTO SOBRE ESTEIRAS, LARGURA DE PAVIMENTAÇÃO 1,90 M A 5,30 M, POTÊNCIA 105 HP CAPACIDADE 450 T/H | E192: CHI | F192: 0,0949000 | G192: 165,12 | H192: 15.66
B193: COMPOSICAO | C193: 88314 | D193: RASTELEIRO COM ENCARGOS COMPLEMENTARES | E193: H | F193: 1,1301000 | G193: 26,52 | H193: 29.97
B194: COMPOSICAO | C194: 91386 | D194: CAMINHÃO BASCULANTE 10 M3, TRUCADO CABINE SIMPLES, PESO BRUTO TOTAL 23.000 KG, CARGA ÚTIL MÁXIMA 15.935 KG, DISTÂNCIA ENTRE EIXOS 4,80 M, POTÊNCIA 230 CV INCLUSIVE CAÇAMBA METÁLICA | E194: CHP | F194: 0,0464000 | G194: 252,13 | H194: 11.69
B195: COMPOSICAO | C195: 95631 | D195: ROLO COMPACTADOR VIBRATORIO TANDEM, ACO LISO, POTENCIA 125 HP, PESO SEM/COM LASTRO 10,20/11,65 T, LARGURA DE TRABALHO 1,73 M | E195: CHP | F195: 0,0805000 | G195: 228,02 | H195: 18.35
B196: COMPOSICAO | C196: 95632 | D196: ROLO COMPACTADOR VIBRATORIO TANDEM, ACO LISO, POTENCIA 125 HP, PESO SEM/COM LASTRO 10,20/11,65 T, LARGURA DE TRABALHO 1,73 M | E196: CHI | F196: 0,0607000 | G196: 89,32 | H196: 5.42
B197: COMPOSICAO | C197: 96155 | D197: TRATOR DE PNEUS COM POTÊNCIA DE 85 CV, TRAÇÃO 4X4, COM VASSOURA MECÂNICA ACOPLADA | E197: CHI | F197: 0,1071000 | G197: 61,42 | H197: 6.57
B198: COMPOSICAO | C198: 96157 | D198: TRATOR DE PNEUS COM POTÊNCIA DE 85 CV, TRAÇÃO 4X4, COM VASSOURA MECÂNICA ACOPLADA | E198: CHP | F198: 0,0341000 | G198: 144,29 | H198: 4.92
B199: COMPOSICAO | C199: 96463 | D199: ROLO COMPACTADOR DE PNEUS, ESTATICO, PRESSAO VARIAVEL, POTENCIA 110 HP, PESO SEM/COM LASTRO 10,8/27 T, LARGURA DE ROLAGEM 2,30 M | E199: CHP | F199: 0,0419000 | G199: 218,21 | H199: 9.14
B200: COMPOSICAO | C200: 96464 | D200: ROLO COMPACTADOR DE PNEUS, ESTATICO, PRESSAO VARIAVEL, POTENCIA 110 HP, PESO SEM/COM LASTRO 10,8/27 T, LARGURA DE ROLAGEM 2,30 M | E200: CHI | F200: 0,0990000 | G200: 95,83 | H200: 9.48
H201: 0
B202: PRODUÇÃO DA EQUIPE | E202: 1 | F202: CUSTO | H202: =SUM(H190:H201) -> 129.6
B203: TOTAL | H203: =H202/E202 -> 129.6 | I203: OK
B204: BDI % | H204: =1+$M$1 -> 1.2409
B205: TOTAL DO SERVIÇO - R$ | H205: =ROUND(H203*H204,2) -> 160.82
A207: 13 | B207: CODEVASF | E207: COMPOSIÇÃO DE PREÇO UNITÁRIO | I207: =H216 -> 0.73 | J207: =H218 -> 0.91
B208: OBRA: | C208: =$C$2 -> PAVIMENTAÇÃO ASFÁLTICA EM CBUQ – ESTRADA DE ACESSO À COMUNIDADE DE PARAGUASSU (NOVA PORTEIRINHA-MG) | G208: DATA: | H208: =$H$2 -> SETEMBRO/2023
B209: SERVIÇO: | C209: =VLOOKUP(A207,ORÇAMENTO!$A$10:$I$31,3) -> TRANSPORTE COM CAMINHÃO BASCULANTE, EM VIA URBANA PAVIMENTADA | E209: SINAPI | F209: =VLOOKUP(A207,ORÇAMENTO!$A$10:$I$31,4) -> 95427 | G209: UNIDADE: | H209: =VLOOKUP(A207,ORÇAMENTO!$A$10:$I$31,5) -> M3XKM
B211: TIPO ITEM | C211: CODIGO ITEM | D211: DESCRIÇÃO ITEM | E211: UNIDADE ITEM | F211: COEFICIENTE | G211: PRECO UNITARIO | H211: CUSTO TOTAL
B212: COMPOSICAO | C212: 89883 | D212: CAMINHÃO BASCULANTE 18 M3, COM CAVALO MECÂNICO DE CAPACIDADE MÁXIMA DE TRAÇÃO COMBINADO DE 45000 KG, POTÊNCIA 330 CV, INCLUSIVE SEMIREBOQUE COM CAÇAMBA METÁLICA | E212: CHP | F212: 0,0019000 | G212: 348.45 | H212: 0.66
B213: COMPOSICAO | C213: 89884 | D213: CAMINHÃO BASCULANTE 18 M3, COM CAVALO MECÂNICO DE CAPACIDADE MÁXIMA DE TRAÇÃO COMBINADO DE 45000 KG, POTÊNCIA 330 CV, INCLUSIVE SEMIREBOQUE COM CAÇAMBA METÁLICA | E213: CHI | F213: 0,0008000 | G213: 93.65 | H213: 0.07
H214: =ROUNDDOWN(F214*G214,2) -> 0
B215: PRODUÇÃO DA EQUIPE | E215: 1 | F215: CUSTO | H215: =SUM(H212:H214) -> 0.73
B216: TOTAL | H216: =H215/E215 -> 0.73 | I216: OK
B217: BDI % | H217: =1+$M$1 -> 1.2409
B218: TOTAL DO SERVIÇO - R$ | H218: =ROUND(H216*H217,2) -> 0.91
A220: 14 | B220: CODEVASF | E220: COMPOSIÇÃO DE PREÇO UNITÁRIO | I220: =H229 -> 1.07 | J220: =H231 -> 1.33
B221: OBRA: | C221: =$C$2 -> PAVIMENTAÇÃO ASFÁLTICA EM CBUQ – ESTRADA DE ACESSO À COMUNIDADE DE PARAGUASSU (NOVA PORTEIRINHA-MG) | G221: DATA: | H221: =$H$2 -> SETEMBRO/2023
B222: SERVIÇO: | C222: =VLOOKUP(A220,ORÇAMENTO!$A$10:$I$31,3) -> TRANSPORTE COM CAMINHÃO BASCULANTE, EM VIA URBANA EM REVESTIMENTO PRIMÁRIO | E222: SINAPI | F222: =VLOOKUP(A220,ORÇAMENTO!$A$10:$I$31,4) -> 95426 | G222: UNIDADE: | H222: =VLOOKUP(A220,ORÇAMENTO!$A$10:$I$31,5) -> M3XKM
B224: TIPO ITEM | C224: CODIGO ITEM | D224: DESCRIÇÃO ITEM | E224: UNIDADE ITEM | F224: COEFICIENTE | G224: PRECO UNITARIO | H224: CUSTO TOTAL
B225: COMPOSICAO | C225: 89883 | D225: CAMINHÃO BASCULANTE 18 M3, COM CAVALO MECÂNICO DE CAPACIDADE MÁXIMA DE TRAÇÃO COMBINADO DE 45000 KG, POTÊNCIA 330 CV, INCLUSIVE SEMIREBOQUE COM CAÇAMBA METÁLICA | E225: CHP | F225: 0.0025 | G225: 348.45 | H225: =ROUNDDOWN(F225*G225,2) -> 0.87
B226: COMPOSICAO | C226: 89884 | D226: CAMINHÃO BASCULANTE 18 M3, COM CAVALO MECÂNICO DE CAPACIDADE MÁXIMA DE TRAÇÃO COMBINADO DE 45000 KG, POTÊNCIA 330 CV, INCLUSIVE SEMIREBOQUE COM CAÇAMBA METÁLICA | E226: CHI | F226: 0,0022000 | G226: 93.65 | H226: 0.2
H227: =ROUNDDOWN(F227*G227,2) -> 0
B228: PRODUÇÃO DA EQUIPE | E228: 1 | F228: CUSTO | H228: =SUM(H225:H227) -> 1.07
... 112 more rows

Sheet BDI SERV
B1: DETALHAMENTO DO BDI - SERVIÇOS
B4: Item | C4: Descrição dos Serviços | D4: % | E4: %
D5: PV | E5: CD
B7: 1 | C7: ADMINISTRAÇÃO CENTRAL | E7: 4.01
B8: 1.1 | C8: ESCRITÓRIO CENTRAL
B9: 1.2 | C9: VIAGENS
B10: 1.3 | C10: OUTROS
B12: 2 | C12: IMPOSTOS E TAXAS | D12: =SUM(D13:D16) -> 8.65 | E12: =SUM(E13:E16) -> 10.82
B13: 2.1 | C13: ISS (*) | D13: 5 | E13: =ROUND(D13*1.2515,2) -> 6.26
B14: 2.2 | C14: PIS | D14: 0.65 | E14: =ROUND(D14*1.2515,2) -> 0.81
B15: 2.3 | C15: Cofins | D15: 3 | E15: =ROUND(D15*1.2515,2) -> 3.75
B16: 2.4 | C16: CONTRIBUIÇÃO PREVIDENCIÁRIA SOBRE A RENDA BRUTA | D16: 0 | E16: =ROUND(D16*1.2515,2) -> 0
B18: 3 | C18: TAXA DE RISCO | E18: =SUM(E19:E22) -> 0.96
B19: 3.1 | C19: SEGURO | E19: 0.2
B20: 3.2 | C20: RISCO | E20: 0.56
B21: 3.3 | C21: GARANTIA | E21: 0.2
T22: =1/0.82 -> 1.219512195
B23: 4 | C23: DESPESAS FINANCEIRAS | E23: 1.11
B25: 5 | C25: LUCRO | E25: 6.8
C27: BDI - CALCULADO | E27: =ROUND((((1+(E7+E18)/100)*(1+E23/100)*(1+E25/100)/(1-D12/100)-1)*100),2) -> 24.09
A29: BDI = ((1+((AC+S+R+G)/100))x(1+DF/100)x(1+L/100)/(1-I/100)-1)*100
B31: BDI (CALCULADO): | D31: =ROUND((((1+((E7+E18)/100))*(1+E23/100)*(1+E25/100))/(1-D12/100)-1)*100,2) -> 24.09 | E31: %
A33: (*) ISS CONFORME LEI 2.226/2017 e LEI COMPLEMENTAR Nº 116/2003 - Considerando as deduções previstas no Art. 106 - § 5º (Alíquota sobre 50% do valor dos serviços)
A37: BDI EM CONFORMIDADE COM OS ACÓRDÃOS Nº 2369/2011 e ACÓRDÃO Nº 2.622/2013 - TCU - PLENÁRIO

Sheet BDI FORN
B1: DETALHAMENTO DO BDI - FORNECIMENTO (MATERIAL ASFÁLTICO)
B4: Item | C4: Descrição dos Serviços | D4: % | E4: %
D5: PV | E5: CD
B7: 1 | C7: ADMINISTRAÇÃO CENTRAL | E7: 3.72
B8: 1.1 | C8: ESCRITÓRIO CENTRAL
B9: 1.2 | C9: VIAGENS
B10: 1.3 | C10: OUTROS
B12: 2 | C12: IMPOSTOS E TAXAS | D12: =SUM(D13:D16) -> 3.65 | E12: =SUM(E13:E16) -> 4.56
B13: 2.1 | C13: ISS (*) | E13: =ROUND(D13*1.2515,2) -> 0
B14: 2.2 | C14: PIS | D14: 0.65 | E14: =ROUND(D14*1.2515,2) -> 0.81
B15: 2.3 | C15: Cofins | D15: 3 | E15: =ROUND(D15*1.2515,2) -> 3.75
B16: 2.4 | C16: CONTRIBUIÇÃO PREVIDENCIÁRIA SOBRE A RENDA BRUTA | D16: 0 | E16: =ROUND(D16*1.2515,2) -> 0
B18: 3 | C18: TAXA DE RISCO | E18: =SUM(E19:E22) -> 0.82
B19: 3.1 | C19: SEGURO | E19: 0.16
B20: 3.2 | C20: RISCO | E20: 0.5
B21: 3.3 | C21: GARANTIA | E21: 0.16
B23: 4 | C23: DESPESAS FINANCEIRAS | E23: 0.94
B25: 5 | C25: LUCRO | E25: 5
C27: BDI - CALCULADO | E27: =ROUND((((1+(E7+E18)/100)*(1+E23/100)*(1+E25/100)/(1-D12/100)-1)*100),2) -> 15
A29: BDI = ((1+((AC+S+R+G)/100))x(1+DF/100)x(1+L/100)/(1-I/100)-1)*100
B31: BDI (CALCULADO): | D31: =ROUND((((1+((E7+E18)/100))*(1+E23/100)*(1+E25/100))/(1-D12/100)-1)*100,2) -> 15 | E31: %
A37: BDI EM CONFORMIDADE COM OS ACÓRDÃOS Nº 2369/2011 e ACÓRDÃO Nº 2.622/2013 - TCU - PLENÁRIO

Sheet CRONOGRAMA
B1: CRONOGRAMA FÍSICO-FINANCEIRO
B2: OBRA: | C2: =ORÇAMENTO!C5 -> PAVIMENTAÇÃO ASFÁLTICA EM CBUQ – ESTRADA DE ACESSO À COMUNIDADE DE PARAGUASSU (NOVA PORTEIRINHA-MG) | F2: VALOR: | G2: =ORÇAMENTO!I38 -> 3123817.71
F3: PRAZO: | G3: 180 DIAS
B5: ITEM | C5: ETAPAS/DESCRIÇAO | D5: FISICO/ FINANCEIRO | E5: TOTAL ETAPAS | F5: MÊS 1 | G5: MÊS 2 | H5: MÊS 3 | I5: MÊS 4 | J5: MÊS 5 | K5: MÊS 6 | L5: TOTAL
A6: A | B6: =VLOOKUP(A6,ORÇAMENTO!$A$9:$I$38,2) -> 1 | C6: =VLOOKUP(A6,ORÇAMENTO!$A$9:$I$38,3) -> SERVIÇOS PRELIMINARES | D6: FISICO | E6: =ROUND(E7/$G$2,4) -> 0.0536 | F6: 0.25 | G6: 0.15 | H6: 0.15 | I6: 0.15 | J6: 0.15 | K6: 0.15 | L6: =SUM(F6:K6) -> 1
D7: FINANCEIRO | E7: =ORÇAMENTO!I9 -> 167404.15 | F7: =ROUND($E$7*F6,2) -> 41851.04 | G7: 25110.62 | H7: 25110.62 | I7: 25110.62 | J7: 25110.62 | K7: 25110.62 | L7: =SUM(F7:K7) -> 167404.14
A8: B | B8: =VLOOKUP(A8,ORÇAMENTO!$A$9:$I$38,2) -> 2 | C8: =VLOOKUP(A8,ORÇAMENTO!$A$9:$I$38,3) -> PAVIMENTAÇÃO | D8: FISICO | E8: =ROUND(E9/$G$2,4) -> 0.259 | F8: 0.1 | G8: 0.2 | H8: 0.2 | I8: 0.2 | J8: 0.2 | K8: 0.1 | L8: =SUM(F8:K8) -> 1
D9: FINANCEIRO | E9: =ORÇAMENTO!I15 -> 809057.6 | F9: =ROUND($E$9*F8,2) -> 80905.76 | G9: 161811.52 | H9: 161811.52 | I9: 161811.52 | J9: 161811.52 | K9: 80905.76 | L9: =SUM(F9:K9) -> 809057.6
A10: C | B10: =VLOOKUP(A10,ORÇAMENTO!$A$9:$I$38,2) -> 3 | C10: =VLOOKUP(A10,ORÇAMENTO!$A$9:$I$38,3) -> TRANSPORTE DE MATERIAIS | D10: FISICO | E10: =ROUND(E11/$G$2,4) -> 0.0382 | F10: 0.1 | G10: 0.2 | H10: 0.2 | I10: 0.2 | J10: 0.2 | K10: 0.1 | L10: =SUM(F10:K10) -> 1
D11: FINANCEIRO | E11: =ORÇAMENTO!I23 -> 119375 | F11: =ROUND($E$11*F10,2) -> 11937.5 | G11: 23875 | H11: 23875 | I11: 23875 | J11: 23875 | K11: 11937.5 | L11: =SUM(F11:K11)-0.04 -> 119374.96
A12: D | B12: =VLOOKUP(A12,ORÇAMENTO!$A$9:$I$38,2) -> 4 | C12: =VLOOKUP(A12,ORÇAMENTO!$A$9:$I$38,3) -> TRANSPORTE DE MATERIAL ASFÁLTICO (BDI DIFERENCIADO) | D12: FISICO | E12: =ROUND(E13/$G$2,4) -> 0.048 | F12: 0.1 | G12: 0.2 | H12: 0.2 | I12: 0.2 | J12: 0.2 | K12: 0.1 | L12: =SUM(F12:K12) -> 1
D13: FINANCEIRO | E13: =ORÇAMENTO!I27 -> 149800 | F13: =ROUND($E$13*F12,2) -> 14980 | G13: 29960 | H13: 29960 | I13: 29960 | J13: 29960 | K13: 14980 | L13: =SUM(F13:K13)-0.02 -> 149799.98
A14: E | B14: =VLOOKUP(A14,ORÇAMENTO!$A$9:$I$38,2) -> 5 | C14: =VLOOKUP(A14,ORÇAMENTO!$A$9:$I$38,3) -> OBRAS COMPLEMENTARES | D14: FISICO | E14: =ROUND(E15/$G$2,4) -> 0.1485 | F14: 0 | G14: 0.2 | H14: 0.2 | I14: 0.2 | J14: 0.2 | K14: 0.2 | L14: =SUM(F14:K14) -> 1
D15: FINANCEIRO | E15: =ORÇAMENTO!I30 -> 463954.5 | F15: =ROUND($E$15*F14,2) -> 0 | G15: 92790.9 | H15: 92790.9 | I15: 92790.9 | J15: 92790.9 | K15: 92790.9 | L15: =SUM(F15:K15)-0.02 -> 463954.48
A16: F | B16: =VLOOKUP(A16,ORÇAMENTO!$A$9:$I$38,2) -> 6 | C16: =VLOOKUP(A16,ORÇAMENTO!$A$9:$I$38,3) -> FORNECIMENTOS - MATERIAL ASFÁLTICO (BDI DIFERENCIADO) | D16: FISICO | E16: =ROUND(E17/$G$2,4) -> 0.4527 | F16: 0.1 | G16: 0.2 | H16: 0.2 | I16: 0.2 | J16: 0.2 | K16: 0.1 | L16: =SUM(F16:K16) -> 1
D17: FINANCEIRO | E17: =ORÇAMENTO!I34 -> 1414226.46 | F17: =ROUND($E$17*F16,2) -> 141422.65 | G17: 282845.29 | H17: 282845.29 | I17: 282845.29 | J17: 282845.29 | K17: 141422.65 | L17: =SUM(F17:K17)-0.02 -> 1414226.44
B18: TOTAL | D18: FISICO | E18: =SUM(F18:K18) -> 0.9999999968 | F18: =F19/$E$19 -> 0.09318627943 | G18: 0.1973205184 | H18: 0.1973205184 | I18: 0.1973205184 | J18: 0.1973205184 | K18: 0.1175316437 | L18: =SUM(F18:K18) -> 0.9999999968
D19: FINANCEIRO | E19: =E11+E9+E7+E13+E17+E15 -> 3123817.71 | F19: 291096.95 | G19: 616393.33 | H19: 616393.33 | I19: 616393.33 | J19: 616393.33 | K19: 367147.43 | L19: =SUM(F19:K19)+0.01 -> 3123817.71
B21: OBSERVAÇÕES:
